[Event "Titled Tuesday Blitz February 21 Early 2023"]
[White "Basso, Pier Luigi"]
[Black "Martinez Alcantara, Jose Eduardo"]
[WhiteFideId "866970"]
[BlackFideId "3805662"]
[WhiteElo "2506"]
[BlackElo "2619"]
[Result "1/2-1/2"]
[Round "04"]
[TimeControl "180+2"]
[Date "2023.02.21"]
[WhiteClock "0:02:16"]
[BlackClock "0:01:24"]

1. d4 {[%clk 0:03:00]}  Nf6 {[%clk 0:03:00]} 2. c4 {[%clk 0:03:00]}  e6 {[%clk 0:03:01]} 3. Nf3 {[%clk 0:03:01]}  Bb4+ {[%clk 0:03:01]} 4. Bd2 {[%clk 0:03:01]}  Qe7 {[%clk 0:03:01]} 5. g3 {[%clk 0:03:00]}  Bxd2+ {[%clk 0:03:02]} 6. Qxd2 {[%clk 0:03:00]}  Nc6 {[%clk 0:03:02]} 7. e3 {[%clk 0:03:01]}  d6 {[%clk 0:03:02]} 8. Bg2 {[%clk 0:03:01]}  e5 {[%clk 0:03:02]} 9. O-O {[%clk 0:03:00]}  O-O {[%clk 0:03:02]} 10. Nc3 {[%clk 0:03:00]}  exd4 {[%clk 0:02:46]} 11. Nxd4 {[%clk 0:03:00]}  Ne5 {[%clk 0:02:46]} 12. b3 {[%clk 0:03:00]}  c6 {[%clk 0:02:46]} 13. h3 {[%clk 0:02:59]}  Re8 {[%clk 0:02:41]} 14. Rad1 {[%clk 0:02:58]}  Ng6 {[%clk 0:02:29]} 15. Qc2 {[%clk 0:02:56]}  Be6 {[%clk 0:02:28]} 16. Rd2 {[%clk 0:02:46]}  Rad8 {[%clk 0:02:27]} 17. Rfd1 {[%clk 0:02:45]}  Qc7 {[%clk 0:02:23]} 18. Nxe6 {[%clk 0:02:33]}  fxe6 {[%clk 0:02:18]} 19. Ne4 {[%clk 0:02:32]}  Nxe4 {[%clk 0:02:09]} 20. Bxe4 {[%clk 0:02:33]}  Nf8 {[%clk 0:02:10]} 21. Bg2 {[%clk 0:02:31]}  Qe7 {[%clk 0:02:07]} 22. e4 {[%clk 0:02:30]}  e5 {[%clk 0:02:07]} 23. c5 {[%clk 0:02:27]}  dxc5 {[%clk 0:02:05]} 24. Rxd8 {[%clk 0:02:26]}  Rxd8 {[%clk 0:02:05]} 25. Rxd8 {[%clk 0:02:26]}  Qxd8 {[%clk 0:02:06]} 26. Qxc5 {[%clk 0:02:27]}  Qd1+ {[%clk 0:01:27]} 27. Kh2 {[%clk 0:02:26]}  Qd4 {[%clk 0:01:26]} 28. Qxd4 {[%clk 0:02:21]}  exd4 {[%clk 0:01:26]} 29. f4 {[%clk 0:02:18]}  Kf7 {[%clk 0:01:26]} 30. Kg1 {[%clk 0:02:17]}  Ke6 {[%clk 0:01:27]} 31. Kf2 {[%clk 0:02:16]}  Kd6 {[%clk 0:01:28]} 32. Ke2 {[%clk 0:02:16]}  a5 {[%clk 0:01:28]} 33. Kd3 {[%clk 0:02:16]}  Kc5 {[%clk 0:01:24]} 1/2-1/2


[Site "https://www.chess.com"]

[Event "Titled Tuesday Blitz February 21 Early 2023"]
[White "Hakobyan, Aram"]
[Black "Talibov, Shiroghlan"]
[WhiteFideId "13306677"]
[BlackFideId "13429078"]
[WhiteElo "2608"]
[BlackElo "2359"]
[Result "1/2-1/2"]
[Round "04"]
[TimeControl "180+2"]
[Date "2023.02.21"]
[WhiteClock "0:00:14"]
[BlackClock "0:00:10"]

1. d4 {[%clk 0:03:00]}  Nf6 {[%clk 0:02:59]} 2. Nf3 {[%clk 0:03:01]}  e6 {[%clk 0:02:57]} 3. c4 {[%clk 0:03:01]}  d5 {[%clk 0:02:54]} 4. Nc3 {[%clk 0:03:00]}  Bb4 {[%clk 0:02:45]} 5. Bg5 {[%clk 0:02:59]}  h6 {[%clk 0:02:40]} 6. Bxf6 {[%clk 0:03:00]}  Qxf6 {[%clk 0:02:41]} 7. e3 {[%clk 0:03:00]}  O-O {[%clk 0:02:40]} 8. Rc1 {[%clk 0:03:01]}  c5 {[%clk 0:02:37]} 9. dxc5 {[%clk 0:02:53]}  Rd8 {[%clk 0:02:34]} 10. cxd5 {[%clk 0:02:47]}  Rxd5 {[%clk 0:02:16]} 11. Qa4 {[%clk 0:02:37]}  Nc6 {[%clk 0:01:46]} 12. a3 {[%clk 0:02:32]}  Bxc3+ {[%clk 0:01:24]} 13. Rxc3 {[%clk 0:02:31]}  Bd7 {[%clk 0:01:25]} 14. Qc2 {[%clk 0:02:17]}  Ne5 {[%clk 0:01:25]} 15. Be2 {[%clk 0:02:15]}  Bc6 {[%clk 0:01:16]} 16. Nd4 {[%clk 0:02:07]}  Qg5 {[%clk 0:01:03]} 17. Nxc6 {[%clk 0:01:09]}  Qxg2 {[%clk 0:01:01]} 18. Ne7+ {[%clk 0:01:03]}  Kf8 {[%clk 0:01:01]} 19. Rf1 {[%clk 0:01:04]}  Kxe7 {[%clk 0:01:00]} 20. f4 {[%clk 0:01:05]}  Nd7 {[%clk 0:00:35]} 21. b4 {[%clk 0:00:54]}  Rc8 {[%clk 0:00:35]} 22. Bf3 {[%clk 0:00:50]}  Qxc2 {[%clk 0:00:34]} 23. Rxc2 {[%clk 0:00:51]}  Rd3 {[%clk 0:00:35]} 24. Ke2 {[%clk 0:00:50]}  Rxa3 {[%clk 0:00:33]} 25. Bxb7 {[%clk 0:00:51]}  Rc7 {[%clk 0:00:33]} 26. Be4 {[%clk 0:00:30]}  a5 {[%clk 0:00:33]} 27. bxa5 {[%clk 0:00:30]}  Rxc5 {[%clk 0:00:29]} 28. Rfc1 {[%clk 0:00:23]}  Raxa5 {[%clk 0:00:27]} 29. Bc6 {[%clk 0:00:23]}  Rxc2+ {[%clk 0:00:26]} 30. Rxc2 {[%clk 0:00:24]}  Rc5 {[%clk 0:00:26]} 31. Rxc5 {[%clk 0:00:24]}  Nxc5 {[%clk 0:00:27]} 32. Kf3 {[%clk 0:00:24]}  Kd6 {[%clk 0:00:27]} 33. Be8 {[%clk 0:00:25]}  f6 {[%clk 0:00:27]} 34. h4 {[%clk 0:00:25]}  e5 {[%clk 0:00:26]} 35. Bg6 {[%clk 0:00:25]}  Ke6 {[%clk 0:00:23]} 36. Bh7 {[%clk 0:00:22]}  f5 {[%clk 0:00:21]} 37. Bg8+ {[%clk 0:00:16]}  Kf6 {[%clk 0:00:20]} 38. Bc4 {[%clk 0:00:17]}  Ne4 {[%clk 0:00:18]} 39. Bd5 {[%clk 0:00:16]}  Nd6 {[%clk 0:00:18]} 40. Bc6 {[%clk 0:00:16]}  Nc4 {[%clk 0:00:14]} 41. Bd5 {[%clk 0:00:16]}  Nd6 {[%clk 0:00:13]} 42. Bc6 {[%clk 0:00:16]}  e4+ {[%clk 0:00:13]} 43. Kf2 {[%clk 0:00:16]}  g5 {[%clk 0:00:11]} 44. hxg5+ {[%clk 0:00:16]}  hxg5 {[%clk 0:00:12]} 45. fxg5+ {[%clk 0:00:17]}  Kxg5 {[%clk 0:00:13]} 46. Bd5 {[%clk 0:00:18]}  Kg4 {[%clk 0:00:13]} 47. Be6 {[%clk 0:00:18]}  Ne8 {[%clk 0:00:12]} 48. Bc4 {[%clk 0:00:18]}  Nf6 {[%clk 0:00:12]} 49. Be2+ {[%clk 0:00:18]}  Kg5 {[%clk 0:00:11]} 50. Bc4 {[%clk 0:00:15]}  Ng4+ {[%clk 0:00:11]} 51. Ke2 {[%clk 0:00:15]}  Ne5 {[%clk 0:00:12]} 52. Be6 {[%clk 0:00:15]}  Kf6 {[%clk 0:00:10]} 53. Bc8 {[%clk 0:00:16]}  Nd3 {[%clk 0:00:10]} 54. Ba6 {[%clk 0:00:15]}  Nc5 {[%clk 0:00:11]} 55. Bc8 {[%clk 0:00:14]}  Ke5 {[%clk 0:00:11]} 56. Kf2 {[%clk 0:00:14]}  Ne6 {[%clk 0:00:10]} 57. Ke2 {[%clk 0:00:13]}  Nc5 {[%clk 0:00:08]} 58. Kf2 {[%clk 0:00:13]}  Ne6 {[%clk 0:00:06]} 59. Ke2 {[%clk 0:00:14]}  Ng7 {[%clk 0:00:07]} 60. Kf2 {[%clk 0:00:14]}  Ne8 {[%clk 0:00:07]} 61. Bd7 {[%clk 0:00:13]}  Nd6 {[%clk 0:00:08]} 62. Ke2 {[%clk 0:00:13]}  Kf6 {[%clk 0:00:08]} 63. Kf2 {[%clk 0:00:12]}  Kg5 {[%clk 0:00:09]} 64. Be6 {[%clk 0:00:12]}  Kg4 {[%clk 0:00:09]} 65. Bd7 {[%clk 0:00:12]}  Nc4 {[%clk 0:00:09]} 66. Ke2 {[%clk 0:00:12]}  Ne5 {[%clk 0:00:09]} 67. Bc8 {[%clk 0:00:12]}  Ng6 {[%clk 0:00:08]} 68. Kf2 {[%clk 0:00:12]}  Ne7 {[%clk 0:00:09]} 69. Bd7 {[%clk 0:00:12]}  Kg5 {[%clk 0:00:08]} 70. Be6 {[%clk 0:00:12]}  Kf6 {[%clk 0:00:08]} 71. Bd7 {[%clk 0:00:13]}  Kg5 {[%clk 0:00:09]} 72. Be6 {[%clk 0:00:13]}  Kf6 {[%clk 0:00:10]} 73. Bd7 {[%clk 0:00:14]}  Kg5 {[%clk 0:00:10]} 1/2-1/2


[Site "https://www.chess.com"]

[Event "Titled Tuesday Blitz February 21 Early 2023"]
[White "Starozhilov, Leonid"]
[Black "Kovalenko, Igor"]
[WhiteFideId "14106752"]
[BlackFideId "14117908"]
[WhiteElo "2313"]
[BlackElo "2674"]
[Result "0-1"]
[Round "04"]
[TimeControl "180+2"]
[Date "2023.02.21"]
[WhiteClock "0:00:13"]
[BlackClock "0:01:23"]

1. e4 {[%clk 0:03:00]}  c5 {[%clk 0:03:00]} 2. Nf3 {[%clk 0:03:00]}  d6 {[%clk 0:03:00]} 3. Bb5+ {[%clk 0:02:58]}  Nd7 {[%clk 0:03:00]} 4. O-O {[%clk 0:02:58]}  g6 {[%clk 0:02:59]} 5. c3 {[%clk 0:02:57]}  a6 {[%clk 0:02:59]} 6. Bxd7+ {[%clk 0:02:51]}  Bxd7 {[%clk 0:02:59]} 7. d4 {[%clk 0:02:52]}  Rc8 {[%clk 0:02:58]} 8. Be3 {[%clk 0:02:46]}  cxd4 {[%clk 0:02:58]} 9. Qxd4 {[%clk 0:02:35]}  Nf6 {[%clk 0:02:56]} 10. e5 {[%clk 0:02:35]}  dxe5 {[%clk 0:02:56]} 11. Nxe5 {[%clk 0:02:36]}  Bb5 {[%clk 0:02:52]} 12. Rd1 {[%clk 0:02:25]}  Qxd4 {[%clk 0:02:52]} 13. Bxd4 {[%clk 0:02:26]}  Bg7 {[%clk 0:02:50]} 14. a4 {[%clk 0:02:18]}  Bc6 {[%clk 0:02:48]} 15. Ng4 {[%clk 0:02:09]}  Nxg4 {[%clk 0:02:34]} 16. Bxg7 {[%clk 0:02:09]}  Rg8 {[%clk 0:02:34]} 17. Bd4 {[%clk 0:02:09]}  f6 {[%clk 0:02:33]} 18. Nd2 {[%clk 0:02:03]}  Kf7 {[%clk 0:02:33]} 19. f3 {[%clk 0:02:01]}  Nh6 {[%clk 0:02:33]} 20. Bb6 {[%clk 0:02:01]}  Nf5 {[%clk 0:02:28]} 21. Nb3 {[%clk 0:01:55]}  h5 {[%clk 0:02:28]} 22. Nd4 {[%clk 0:01:42]}  Nxd4 {[%clk 0:02:26]} 23. Rxd4 {[%clk 0:01:40]}  g5 {[%clk 0:02:25]} 24. Rad1 {[%clk 0:01:25]}  e5 {[%clk 0:02:24]} 25. Rc4 {[%clk 0:00:59]}  Ke6 {[%clk 0:02:19]} 26. a5 {[%clk 0:00:56]}  Rg7 {[%clk 0:02:06]} 27. Kf2 {[%clk 0:00:53]}  f5 {[%clk 0:01:50]} 28. b4 {[%clk 0:00:37]}  Re8 {[%clk 0:01:45]} 29. Rc5 {[%clk 0:00:28]}  f4 {[%clk 0:01:44]} 30. Rxe5+ {[%clk 0:00:25]}  Kxe5 {[%clk 0:01:43]} 31. Bd4+ {[%clk 0:00:25]}  Kf5 {[%clk 0:01:42]} 32. Bxg7 {[%clk 0:00:26]}  g4 {[%clk 0:01:42]} 33. Bd4 {[%clk 0:00:22]}  h4 {[%clk 0:01:37]} 34. fxg4+ {[%clk 0:00:20]}  Kxg4 {[%clk 0:01:38]} 35. h3+ {[%clk 0:00:21]}  Kf5 {[%clk 0:01:38]} 36. Rd2 {[%clk 0:00:18]}  Rg8 {[%clk 0:01:37]} 37. Kf1 {[%clk 0:00:17]}  Rg3 {[%clk 0:01:36]} 38. Rf2 {[%clk 0:00:13]}  f3 {[%clk 0:01:31]} 39. gxf3 {[%clk 0:00:13]}  Rxh3 {[%clk 0:01:27]} 40. Ke2 {[%clk 0:00:13]}  Rh1 {[%clk 0:01:24]} 41. Rf1 {[%clk 0:00:13]}  Bb5+ {[%clk 0:01:23]} 0-1


[Site "https://www.chess.com"]

[Event "Titled Tuesday Blitz February 21 Early 2023"]
[White "Timofeev, Artyom"]
[Black "Aldokhin, Ivan"]
[WhiteFideId "4140419"]
[BlackFideId "24115720"]
[WhiteElo "2567"]
[BlackElo "2413"]
[Result "1-0"]
[Round "04"]
[TimeControl "180+2"]
[Date "2023.02.21"]
[WhiteClock "0:01:07"]
[BlackClock "0:00:03"]

1. e4 {[%clk 0:03:00]}  c5 {[%clk 0:02:59]} 2. Nf3 {[%clk 0:03:00]}  e6 {[%clk 0:03:00]} 3. d4 {[%clk 0:03:00]}  cxd4 {[%clk 0:03:01]} 4. Nxd4 {[%clk 0:03:00]}  a6 {[%clk 0:03:01]} 5. Bd3 {[%clk 0:03:00]}  Qc7 {[%clk 0:03:02]} 6. O-O {[%clk 0:02:59]}  Nf6 {[%clk 0:03:03]} 7. Qe2 {[%clk 0:02:58]}  d6 {[%clk 0:03:01]} 8. f4 {[%clk 0:02:55]}  Nbd7 {[%clk 0:03:00]} 9. Kh1 {[%clk 0:02:52]}  Be7 {[%clk 0:02:57]} 10. Nc3 {[%clk 0:02:49]}  b5 {[%clk 0:02:55]} 11. Bd2 {[%clk 0:02:49]}  Bb7 {[%clk 0:02:50]} 12. Rae1 {[%clk 0:02:48]}  b4 {[%clk 0:02:37]} 13. Nd1 {[%clk 0:02:45]}  Nc5 {[%clk 0:02:37]} 14. Nf2 {[%clk 0:02:42]}  Nxd3 {[%clk 0:02:22]} 15. cxd3 {[%clk 0:02:42]}  Qb6 {[%clk 0:02:12]} 16. Be3 {[%clk 0:02:27]}  Qa5 {[%clk 0:02:12]} 17. Qd2 {[%clk 0:02:11]}  h5 {[%clk 0:01:37]} 18. a3 {[%clk 0:02:08]}  Ng4 {[%clk 0:01:07]} 19. axb4 {[%clk 0:02:07]}  Qd8 {[%clk 0:00:42]} 20. Nh3 {[%clk 0:02:03]}  Qd7 {[%clk 0:00:38]} 21. Bg1 {[%clk 0:02:01]}  Rb8 {[%clk 0:00:35]} 22. Ng5 {[%clk 0:01:56]}  Bxg5 {[%clk 0:00:31]} 23. fxg5 {[%clk 0:01:56]}  h4 {[%clk 0:00:31]} 24. h3 {[%clk 0:01:54]}  Ne5 {[%clk 0:00:32]} 25. Bh2 {[%clk 0:01:50]}  O-O {[%clk 0:00:27]} 26. Nf3 {[%clk 0:01:27]}  Ng6 {[%clk 0:00:26]} 27. Qf2 {[%clk 0:01:22]}  Ba8 {[%clk 0:00:17]} 28. Nxh4 {[%clk 0:01:21]}  Nxh4 {[%clk 0:00:16]} 29. Qxh4 {[%clk 0:01:22]}  Rxb4 {[%clk 0:00:17]} 30. g6 {[%clk 0:01:20]}  fxg6 {[%clk 0:00:02]} 31. Rxf8+ {[%clk 0:01:19]}  Kxf8 {[%clk 0:00:03]} 32. Qh8+ {[%clk 0:01:15]}  Ke7 {[%clk 0:00:04]} 33. Rf1 {[%clk 0:01:09]}  Qe8 {[%clk 0:00:02]} 34. Qxg7+ {[%clk 0:01:09]}  Kd8 {[%clk 0:00:03]} 35. Rf8 {[%clk 0:01:07]} 1-0


[Site "https://www.chess.com"]

[Event "Titled Tuesday Blitz February 21 Early 2023"]
[White "Skvortsov, Andrei"]
[Black "Bharath Subramaniyam H"]
[WhiteFideId "24108600"]
[BlackFideId "46634827"]
[WhiteElo "2313"]
[BlackElo "2517"]
[Result "0-1"]
[Round "04"]
[TimeControl "180+2"]
[Date "2023.02.21"]
[WhiteClock "0:00:02"]
[BlackClock "0:00:09"]

1. e4 {[%clk 0:03:00]}  c6 {[%clk 0:02:58]} 2. d4 {[%clk 0:02:57]}  d5 {[%clk 0:02:59]} 3. e5 {[%clk 0:02:57]}  Bf5 {[%clk 0:02:56]} 4. c4 {[%clk 0:02:56]}  e6 {[%clk 0:02:55]} 5. Nc3 {[%clk 0:02:56]}  Nd7 {[%clk 0:02:52]} 6. cxd5 {[%clk 0:02:41]}  cxd5 {[%clk 0:02:52]} 7. Bd3 {[%clk 0:02:41]}  Ne7 {[%clk 0:02:49]} 8. Nge2 {[%clk 0:02:40]}  Bxd3 {[%clk 0:02:48]} 9. Qxd3 {[%clk 0:02:39]}  Nc6 {[%clk 0:02:49]} 10. O-O {[%clk 0:02:38]}  Be7 {[%clk 0:02:48]} 11. a3 {[%clk 0:02:32]}  Qb6 {[%clk 0:02:48]} 12. b4 {[%clk 0:02:32]}  Rc8 {[%clk 0:02:47]} 13. Bb2 {[%clk 0:02:29]}  O-O {[%clk 0:02:40]} 14. g3 {[%clk 0:02:21]}  Ncb8 {[%clk 0:02:29]} 15. Nf4 {[%clk 0:02:12]}  Bg5 {[%clk 0:02:16]} 16. Nfe2 {[%clk 0:02:08]}  Rc4 {[%clk 0:02:10]} 17. f4 {[%clk 0:02:02]}  Be7 {[%clk 0:02:08]} 18. Kg2 {[%clk 0:02:02]}  Rfc8 {[%clk 0:02:07]} 19. f5 {[%clk 0:01:56]}  Nc6 {[%clk 0:01:56]} 20. Rad1 {[%clk 0:01:51]}  Ncxe5 {[%clk 0:01:35]} 21. dxe5 {[%clk 0:01:50]}  Nxe5 {[%clk 0:01:36]} 22. Nxd5 {[%clk 0:01:26]}  Nxd3 {[%clk 0:01:32]} 23. Nxb6 {[%clk 0:01:25]}  axb6 {[%clk 0:01:33]} 24. Rxd3 {[%clk 0:01:24]}  Rc2 {[%clk 0:01:34]} 25. Rf2 {[%clk 0:01:16]}  Rxb2 {[%clk 0:01:32]} 26. fxe6 {[%clk 0:01:14]}  fxe6 {[%clk 0:01:32]} 27. Nf4 {[%clk 0:00:58]}  Rxf2+ {[%clk 0:01:22]} 28. Kxf2 {[%clk 0:00:59]}  Kf7 {[%clk 0:01:22]} 29. h4 {[%clk 0:00:53]}  Rd8 {[%clk 0:01:13]} 30. Rc3 {[%clk 0:00:48]}  Rd7 {[%clk 0:01:11]} 31. Kf3 {[%clk 0:00:47]}  Bf6 {[%clk 0:01:09]} 32. Re3 {[%clk 0:00:44]}  Rd6 {[%clk 0:01:05]} 33. Ke2 {[%clk 0:00:26]}  e5 {[%clk 0:01:03]} 34. Nd3 {[%clk 0:00:26]}  Rd5 {[%clk 0:01:01]} 35. Nb2 {[%clk 0:00:22]}  b5 {[%clk 0:00:51]} 36. Nd1 {[%clk 0:00:22]}  Ke6 {[%clk 0:00:17]} 37. Nc3 {[%clk 0:00:22]}  Rd7 {[%clk 0:00:18]} 38. Nxb5 {[%clk 0:00:22]}  g5 {[%clk 0:00:17]} 39. hxg5 {[%clk 0:00:21]}  Bxg5 {[%clk 0:00:18]} 40. Rd3 {[%clk 0:00:22]}  Rf7 {[%clk 0:00:15]} 41. Nd6 {[%clk 0:00:18]}  Rc7 {[%clk 0:00:13]} 42. Ne4 {[%clk 0:00:18]}  Bc1 {[%clk 0:00:14]} 43. Rd6+ {[%clk 0:00:17]}  Ke7 {[%clk 0:00:10]} 44. Rd3 {[%clk 0:00:12]}  Rc2+ {[%clk 0:00:09]} 45. Kf3 {[%clk 0:00:08]}  Ra2 {[%clk 0:00:10]} 46. Nc5 {[%clk 0:00:09]}  Rxa3 {[%clk 0:00:09]} 47. Rxa3 {[%clk 0:00:09]}  Bxa3 {[%clk 0:00:09]} 48. Nd3 {[%clk 0:00:09]}  Ke6 {[%clk 0:00:08]} 49. Ke4 {[%clk 0:00:09]}  b5 {[%clk 0:00:08]} 50. Nc5+ {[%clk 0:00:09]}  Kd6 {[%clk 0:00:07]} 51. Nd3 {[%clk 0:00:10]}  h6 {[%clk 0:00:08]} 52. g4 {[%clk 0:00:09]}  Ke6 {[%clk 0:00:08]} 53. Nc5+ {[%clk 0:00:07]}  Kf6 {[%clk 0:00:08]} 54. Nd3 {[%clk 0:00:08]}  Kg5 {[%clk 0:00:09]} 55. Kf3 {[%clk 0:00:07]}  e4+ {[%clk 0:00:08]} 56. Kxe4 {[%clk 0:00:07]}  Kxg4 {[%clk 0:00:09]} 57. Ke3 {[%clk 0:00:07]}  Kg3 {[%clk 0:00:09]} 58. Ke2 {[%clk 0:00:07]}  h5 {[%clk 0:00:09]} 59. Ke3 {[%clk 0:00:05]}  h4 {[%clk 0:00:09]} 60. Nf4 {[%clk 0:00:02]}  Bc1+ {[%clk 0:00:09]} 0-1


[Site "https://www.chess.com"]

[Event "Titled Tuesday Blitz February 21 Early 2023"]
[White "Jeet, Jain"]
[Black "Narayanan, Srinath"]
[WhiteFideId "5073022"]
[BlackFideId "5018420"]
[WhiteElo "2199"]
[BlackElo "2559"]
[Result "0-1"]
[Round "04"]
[TimeControl "180+2"]
[Date "2023.02.21"]
[WhiteClock "0:00:07"]
[BlackClock "0:00:15"]

1. Nf3 {[%clk 0:02:57]}  d5 {[%clk 0:02:57]} 2. g3 {[%clk 0:02:56]}  g6 {[%clk 0:02:57]} 3. Bg2 {[%clk 0:02:54]}  Bg7 {[%clk 0:02:57]} 4. O-O {[%clk 0:02:54]}  e5 {[%clk 0:02:57]} 5. d3 {[%clk 0:02:55]}  Ne7 {[%clk 0:02:56]} 6. e4 {[%clk 0:02:54]}  Nbc6 {[%clk 0:02:57]} 7. Nbd2 {[%clk 0:02:51]}  O-O {[%clk 0:02:56]} 8. c3 {[%clk 0:02:50]}  h6 {[%clk 0:02:56]} 9. Re1 {[%clk 0:02:49]}  Be6 {[%clk 0:02:51]} 10. a3 {[%clk 0:02:47]}  a5 {[%clk 0:02:50]} 11. Qc2 {[%clk 0:02:43]}  a4 {[%clk 0:02:43]} 12. h3 {[%clk 0:02:30]}  Qd7 {[%clk 0:02:42]} 13. Kh2 {[%clk 0:02:30]}  Rfd8 {[%clk 0:02:42]} 14. c4 {[%clk 0:02:11]}  dxc4 {[%clk 0:02:18]} 15. dxc4 {[%clk 0:02:07]}  Qd3 {[%clk 0:02:13]} 16. Qxd3 {[%clk 0:02:04]}  Rxd3 {[%clk 0:02:14]} 17. Bf1 {[%clk 0:02:04]}  Rd7 {[%clk 0:02:14]} 18. Nb1 {[%clk 0:02:00]}  Na5 {[%clk 0:02:12]} 19. Nbd2 {[%clk 0:01:20]}  Nec6 {[%clk 0:02:09]} 20. Rb1 {[%clk 0:01:16]}  b6 {[%clk 0:02:08]} 21. Re3 {[%clk 0:01:04]}  Rad8 {[%clk 0:02:05]} 22. Rc3 {[%clk 0:01:04]}  Nd4 {[%clk 0:01:46]} 23. Ne1 {[%clk 0:00:22]}  c5 {[%clk 0:01:39]} 24. Nc2 {[%clk 0:00:20]}  Nxc2 {[%clk 0:01:04]} 25. Rxc2 {[%clk 0:00:20]}  Nc6 {[%clk 0:01:00]} 26. b4 {[%clk 0:00:16]}  cxb4 {[%clk 0:00:50]} 27. axb4 {[%clk 0:00:16]}  Nd4 {[%clk 0:00:51]} 28. Ra2 {[%clk 0:00:16]}  b5 {[%clk 0:00:51]} 29. Kg2 {[%clk 0:00:14]}  Rc8 {[%clk 0:00:46]} 30. Ra3 {[%clk 0:00:14]}  bxc4 {[%clk 0:00:41]} 31. Rxa4 {[%clk 0:00:14]}  c3 {[%clk 0:00:42]} 32. Nf3 {[%clk 0:00:14]}  Nxf3 {[%clk 0:00:28]} 33. Kxf3 {[%clk 0:00:14]}  Rd1 {[%clk 0:00:29]} 34. Be2 {[%clk 0:00:13]}  c2 {[%clk 0:00:28]} 35. Rba1 {[%clk 0:00:13]}  Bxh3 {[%clk 0:00:28]} 36. b5 {[%clk 0:00:10]}  g5 {[%clk 0:00:18]} 37. b6 {[%clk 0:00:10]}  Rc3+ {[%clk 0:00:15]} 38. Be3 {[%clk 0:00:07]}  g4# {[%clk 0:00:15]} 0-1


[Site "https://www.chess.com"]

[Event "Titled Tuesday Blitz February 21 Early 2023"]
[White "Pajeken, Jakob Leon"]
[Black "Pranav, V"]
[WhiteFideId "12942839"]
[BlackFideId "25060783"]
[WhiteElo "2417"]
[BlackElo "2597"]
[Result "1-0"]
[Round "04"]
[TimeControl "180+2"]
[Date "2023.02.21"]
[WhiteClock "0:00:38"]
[BlackClock "0:00:20"]

1. d4 {[%clk 0:02:58]}  Nf6 {[%clk 0:02:59]} 2. Nf3 {[%clk 0:02:59]}  g6 {[%clk 0:02:59]} 3. g3 {[%clk 0:02:59]}  Bg7 {[%clk 0:02:59]} 4. Bg2 {[%clk 0:03:00]}  O-O {[%clk 0:03:00]} 5. O-O {[%clk 0:03:00]}  d5 {[%clk 0:03:00]} 6. c4 {[%clk 0:03:00]}  dxc4 {[%clk 0:03:00]} 7. Na3 {[%clk 0:03:00]}  c3 {[%clk 0:03:01]} 8. bxc3 {[%clk 0:03:01]}  c5 {[%clk 0:03:01]} 9. Bb2 {[%clk 0:02:59]}  Nc6 {[%clk 0:03:00]} 10. Re1 {[%clk 0:03:00]}  Bf5 {[%clk 0:02:59]} 11. d5 {[%clk 0:02:59]}  Na5 {[%clk 0:02:55]} 12. Nd2 {[%clk 0:02:56]}  Rc8 {[%clk 0:02:49]} 13. c4 {[%clk 0:02:50]}  a6 {[%clk 0:02:40]} 14. e4 {[%clk 0:02:42]}  Bg4 {[%clk 0:02:39]} 15. f3 {[%clk 0:02:40]}  Bd7 {[%clk 0:02:37]} 16. Bf1 {[%clk 0:02:34]}  e6 {[%clk 0:02:30]} 17. e5 {[%clk 0:02:22]}  Ne8 {[%clk 0:02:28]} 18. Ne4 {[%clk 0:02:22]}  b5 {[%clk 0:02:21]} 19. dxe6 {[%clk 0:02:11]}  fxe6 {[%clk 0:01:58]} 20. cxb5 {[%clk 0:02:06]}  axb5 {[%clk 0:01:52]} 21. Nxb5 {[%clk 0:01:57]}  c4 {[%clk 0:01:41]} 22. a4 {[%clk 0:01:52]}  Nb3 {[%clk 0:01:35]} 23. Rb1 {[%clk 0:01:47]}  Qb6+ {[%clk 0:01:33]} 24. Kh1 {[%clk 0:01:23]}  Bxb5 {[%clk 0:01:27]} 25. axb5 {[%clk 0:01:24]}  Qxb5 {[%clk 0:01:27]} 26. Ba3 {[%clk 0:01:20]}  Rf7 {[%clk 0:01:24]} 27. Bxc4 {[%clk 0:01:11]}  Rxc4 {[%clk 0:01:15]} 28. Qxb3 {[%clk 0:01:08]}  Qa6 {[%clk 0:01:09]} 29. Qb5 {[%clk 0:01:00]}  Qxb5 {[%clk 0:00:50]} 30. Rxb5 {[%clk 0:01:01]}  Rxf3 {[%clk 0:00:51]} 31. Rb8 {[%clk 0:00:59]}  Rxa3 {[%clk 0:00:31]} 32. Rxe8+ {[%clk 0:00:59]}  Bf8 {[%clk 0:00:31]} 33. Ng5 {[%clk 0:00:45]}  h6 {[%clk 0:00:20]} 34. Rf1 {[%clk 0:00:38]} 1-0


[Site "https://www.chess.com"]

[Event "Titled Tuesday Blitz February 21 Early 2023"]
[White "Tologon tegin, Semetei"]
[Black "Bluebaum, Matthias"]
[WhiteFideId "13800574"]
[BlackFideId "24651516"]
[WhiteElo "2372"]
[BlackElo "2669"]
[Result "0-1"]
[Round "04"]
[TimeControl "180+2"]
[Date "2023.02.21"]
[WhiteClock "0:00:04"]
[BlackClock "0:01:27"]

1. Nf3 {[%clk 0:02:42]}  d5 {[%clk 0:03:00]} 2. g3 {[%clk 0:02:41]}  e6 {[%clk 0:03:01]} 3. Bg2 {[%clk 0:02:39]}  Nf6 {[%clk 0:03:01]} 4. b3 {[%clk 0:02:40]}  Bd6 {[%clk 0:02:59]} 5. c4 {[%clk 0:02:39]}  Nc6 {[%clk 0:02:59]} 6. Bb2 {[%clk 0:02:39]}  O-O {[%clk 0:02:59]} 7. O-O {[%clk 0:02:39]}  d4 {[%clk 0:03:00]} 8. Nxd4 {[%clk 0:02:33]}  Nxd4 {[%clk 0:03:01]} 9. Bxd4 {[%clk 0:02:33]}  Bxg3 {[%clk 0:03:02]} 10. Bxf6 {[%clk 0:02:33]}  Qxf6 {[%clk 0:03:03]} 11. fxg3 {[%clk 0:02:17]}  Qxa1 {[%clk 0:03:02]} 12. Qc2 {[%clk 0:02:10]}  Qd4+ {[%clk 0:02:46]} 13. e3 {[%clk 0:02:05]}  Qd8 {[%clk 0:02:47]} 14. Nc3 {[%clk 0:01:55]}  c6 {[%clk 0:02:47]} 15. d4 {[%clk 0:01:49]}  e5 {[%clk 0:02:46]} 16. d5 {[%clk 0:01:42]}  cxd5 {[%clk 0:02:39]} 17. Bxd5 {[%clk 0:01:40]}  Qb6 {[%clk 0:02:27]} 18. Qe4 {[%clk 0:01:29]}  Qc7 {[%clk 0:02:22]} 19. Nb5 {[%clk 0:01:12]}  Qe7 {[%clk 0:02:20]} 20. Qc2 {[%clk 0:00:53]}  Be6 {[%clk 0:02:15]} 21. e4 {[%clk 0:00:49]}  Bxd5 {[%clk 0:02:04]} 22. exd5 {[%clk 0:00:46]}  e4 {[%clk 0:02:00]} 23. c5 {[%clk 0:00:42]}  Rac8 {[%clk 0:01:57]} 24. b4 {[%clk 0:00:25]}  Qe5 {[%clk 0:01:50]} 25. d6 {[%clk 0:00:13]}  a6 {[%clk 0:01:49]} 26. Nc3 {[%clk 0:00:12]}  Qd4+ {[%clk 0:01:50]} 27. Kg2 {[%clk 0:00:11]}  Qxb4 {[%clk 0:01:41]} 28. Nxe4 {[%clk 0:00:11]}  Qd4 {[%clk 0:01:27]} 29. Ng5 {[%clk 0:00:06]}  Qd5+ {[%clk 0:01:28]} 30. Qe4 {[%clk 0:00:04]}  Qxg5 {[%clk 0:01:27]} 0-1


[Site "https://www.chess.com"]